[Event "Titled Tuesday Blitz June 27 Early 2023"]
[White "Beerdsen, Thomas"]
[Black "Sahib Singh"]
[WhiteFideId "1030108"]
[BlackFideId "25618342"]
[WhiteElo "2822"]
[BlackElo "2664"]
[Result "1-0"]
[Round "5"]
[TimeControl "180+2"]
[Date "2023.06.27"]
[WhiteClock "0:01:53"]
[BlackClock "0:00:00"]
[Board "37"]

1. e4 {[%clk 0:03:00]}  e6 {[%clk 0:02:58]} 2. c4 {[%clk 0:03:00]}  d5 {[%clk 0:02:59]} 3. cxd5 {[%clk 0:03:01]}  exd5 {[%clk 0:03:00]} 4. Qb3 {[%clk 0:03:02]}  dxe4 {[%clk 0:02:54]} 5. Nc3 {[%clk 0:03:02]}  Nc6 {[%clk 0:02:37]} 6. Bc4 {[%clk 0:03:03]}  Ne5 {[%clk 0:02:32]} 7. Qb5+ {[%clk 0:02:54]}  Nc6 {[%clk 0:02:31]} 8. d3 {[%clk 0:02:47]}  a6 {[%clk 0:02:20]} 9. Qb3 {[%clk 0:02:46]}  Ne5 {[%clk 0:01:57]} 10. dxe4 {[%clk 0:02:46]}  Nxc4 {[%clk 0:01:54]} 11. Qxc4 {[%clk 0:02:47]}  Be6 {[%clk 0:01:55]} 12. Qe2 {[%clk 0:02:48]}  b5 {[%clk 0:01:53]} 13. Nf3 {[%clk 0:02:47]}  Bc5 {[%clk 0:01:46]} 14. Bg5 {[%clk 0:02:40]}  f6 {[%clk 0:01:44]} 15. Rd1 {[%clk 0:02:39]}  Qe7 {[%clk 0:01:35]} 16. Bf4 {[%clk 0:02:36]}  c6 {[%clk 0:01:31]} 17. Qc2 {[%clk 0:02:27]}  g5 {[%clk 0:01:24]} 18. Bg3 {[%clk 0:02:19]}  h5 {[%clk 0:01:20]} 19. h4 {[%clk 0:02:17]}  g4 {[%clk 0:01:16]} 20. Nd4 {[%clk 0:02:16]}  Bxd4 {[%clk 0:01:04]} 21. Rxd4 {[%clk 0:02:17]}  Bc4 {[%clk 0:01:03]} 22. b3 {[%clk 0:02:15]}  Be6 {[%clk 0:00:53]} 23. O-O {[%clk 0:02:14]}  Nh6 {[%clk 0:00:53]} 24. Bd6 {[%clk 0:02:14]}  Qb7 {[%clk 0:00:49]} 25. Ne2 {[%clk 0:02:14]}  O-O-O {[%clk 0:00:40]} 26. Nf4 {[%clk 0:02:15]}  Bf7 {[%clk 0:00:38]} 27. Rc1 {[%clk 0:02:15]}  Be8 {[%clk 0:00:36]} 28. Ne6 {[%clk 0:02:07]}  Nf7 {[%clk 0:00:27]} 29. Nxd8 {[%clk 0:02:07]}  Nxd8 {[%clk 0:00:28]} 30. Bg3 {[%clk 0:02:05]}  Ne6 {[%clk 0:00:28]} 31. Rd6 {[%clk 0:02:06]}  Bd7 {[%clk 0:00:21]} 32. e5 {[%clk 0:02:06]}  f5 {[%clk 0:00:15]} 33. Qxf5 {[%clk 0:02:06]}  Nd4 {[%clk 0:00:14]} 34. Qe4 {[%clk 0:02:06]}  Ne6 {[%clk 0:00:11]} 35. Rxe6 {[%clk 0:02:05]}  Bxe6 {[%clk 0:00:11]} 36. Rxc6+ {[%clk 0:02:05]}  Kb8 {[%clk 0:00:10]} 37. f3 {[%clk 0:01:52]}  gxf3 {[%clk 0:00:08]} 38. Bf2 {[%clk 0:01:52]}  Ka8 {[%clk 0:00:03]} 39. Rxa6+ {[%clk 0:01:53]}  Kb8 {[%clk 0:00:00]} 40. Rb6 {[%clk 0:01:53]} 1-0


[Site "https://www.chess.com"]

[Event "Titled Tuesday Blitz June 27 Early 2023"]
[White "Kjartansson, David"]
[Black "Harsh Suresh"]
[WhiteFideId "2301130"]
[BlackFideId "45018464"]
[WhiteElo "2664"]
[BlackElo "2820"]
[Result "1-0"]
[Round "5"]
[TimeControl "180+2"]
[Date "2023.06.27"]
[WhiteClock "0:00:46"]
[BlackClock "0:00:15"]
[Board "38"]

1. d4 {[%clk 0:03:00]}  Nf6 {[%clk 0:02:58]} 2. Nc3 {[%clk 0:03:01]}  d5 {[%clk 0:02:51]} 3. Bf4 {[%clk 0:03:01]}  c5 {[%clk 0:02:50]} 4. e3 {[%clk 0:02:50]}  cxd4 {[%clk 0:02:50]} 5. exd4 {[%clk 0:02:49]}  a6 {[%clk 0:02:50]} 6. Bd3 {[%clk 0:02:44]}  Nc6 {[%clk 0:02:50]} 7. Nce2 {[%clk 0:02:39]}  Nb4 {[%clk 0:02:48]} 8. Nf3 {[%clk 0:02:36]}  Nxd3+ {[%clk 0:02:48]} 9. Qxd3 {[%clk 0:02:36]}  g6 {[%clk 0:02:46]} 10. O-O {[%clk 0:02:36]}  Bg7 {[%clk 0:02:46]} 11. Ng3 {[%clk 0:02:30]}  O-O {[%clk 0:02:45]} 12. c3 {[%clk 0:02:28]}  Qb6 {[%clk 0:02:38]} 13. b3 {[%clk 0:02:25]}  Bd7 {[%clk 0:02:29]} 14. Rfe1 {[%clk 0:02:21]}  e6 {[%clk 0:02:28]} 15. Qd2 {[%clk 0:02:21]}  Rac8 {[%clk 0:02:27]} 16. Rac1 {[%clk 0:02:19]}  a5 {[%clk 0:02:19]} 17. h4 {[%clk 0:02:18]}  h5 {[%clk 0:02:19]} 18. Ne5 {[%clk 0:02:14]}  Qd8 {[%clk 0:02:07]} 19. Bg5 {[%clk 0:02:10]}  Qc7 {[%clk 0:02:01]} 20. a4 {[%clk 0:02:07]}  b5 {[%clk 0:01:55]} 21. axb5 {[%clk 0:02:08]}  Bxb5 {[%clk 0:01:56]} 22. Bh6 {[%clk 0:02:03]}  Nh7 {[%clk 0:01:46]} 23. Bxg7 {[%clk 0:01:55]}  Kxg7 {[%clk 0:01:47]} 24. c4 {[%clk 0:01:52]}  dxc4 {[%clk 0:01:41]} 25. bxc4 {[%clk 0:01:53]}  Be8 {[%clk 0:01:41]} 26. Ne4 {[%clk 0:01:50]}  Rd8 {[%clk 0:01:34]} 27. Qe3 {[%clk 0:01:44]}  Qe7 {[%clk 0:01:33]} 28. g3 {[%clk 0:01:40]}  Nf6 {[%clk 0:01:33]} 29. Ng5 {[%clk 0:01:30]}  a4 {[%clk 0:01:06]} 30. Red1 {[%clk 0:01:30]}  Rb8 {[%clk 0:01:04]} 31. Ra1 {[%clk 0:01:24]}  Bd7 {[%clk 0:01:02]} 32. Nxd7 {[%clk 0:01:21]}  Qxd7 {[%clk 0:01:01]} 33. Qe5 {[%clk 0:01:20]}  Ra8 {[%clk 0:00:54]} 34. Ra3 {[%clk 0:01:18]}  Rfc8 {[%clk 0:00:52]} 35. Ne4 {[%clk 0:01:14]}  Qe7 {[%clk 0:00:50]} 36. Rf3 {[%clk 0:01:14]}  a3 {[%clk 0:00:37]} 37. Nxf6 {[%clk 0:01:12]}  Qc7 {[%clk 0:00:27]} 38. Nxh5+ {[%clk 0:01:12]}  Kh6 {[%clk 0:00:27]} 39. Qg7+ {[%clk 0:01:12]}  Kxh5 {[%clk 0:00:27]} 40. Rxf7 {[%clk 0:00:59]}  Qxc4 {[%clk 0:00:19]} 41. Qh7+ {[%clk 0:00:56]}  Kg4 {[%clk 0:00:20]} 42. Kg2 {[%clk 0:00:47]}  Qc2 {[%clk 0:00:15]} 43. Rf4# {[%clk 0:00:46]} 1-0


[Site "https://www.chess.com"]

[Event "Titled Tuesday Blitz June 27 Early 2023"]
[White "Srihari L R"]
[Black "Megalios, Konstantinos"]
[WhiteFideId "46617116"]
[BlackFideId "4238044"]
[WhiteElo "2808"]
[BlackElo "2642"]
[Result "1-0"]
[Round "5"]
[TimeControl "180+2"]
[Date "2023.06.27"]
[WhiteClock "0:00:56"]
[BlackClock "0:00:04"]
[Board "44"]

1. c4 {[%clk 0:02:58]}  Nf6 {[%clk 0:02:58]} 2. Nc3 {[%clk 0:02:58]}  g6 {[%clk 0:02:58]} 3. g3 {[%clk 0:02:57]}  Bg7 {[%clk 0:02:56]} 4. Bg2 {[%clk 0:02:57]}  O-O {[%clk 0:02:55]} 5. Nf3 {[%clk 0:02:57]}  d6 {[%clk 0:02:56]} 6. d4 {[%clk 0:02:57]}  Nbd7 {[%clk 0:02:55]} 7. O-O {[%clk 0:02:56]}  e5 {[%clk 0:02:55]} 8. e4 {[%clk 0:02:53]}  exd4 {[%clk 0:02:54]} 9. Nxd4 {[%clk 0:02:54]}  Re8 {[%clk 0:02:54]} 10. h3 {[%clk 0:02:53]}  Nc5 {[%clk 0:02:54]} 11. Re1 {[%clk 0:02:52]}  h6 {[%clk 0:02:44]} 12. b3 {[%clk 0:02:32]}  a5 {[%clk 0:02:35]} 13. Bb2 {[%clk 0:02:32]}  a4 {[%clk 0:02:30]} 14. Rb1 {[%clk 0:02:26]}  axb3 {[%clk 0:02:27]} 15. axb3 {[%clk 0:02:27]}  Bd7 {[%clk 0:02:18]} 16. Kh2 {[%clk 0:02:26]}  c6 {[%clk 0:01:39]} 17. b4 {[%clk 0:02:24]}  Ne6 {[%clk 0:01:37]} 18. Nce2 {[%clk 0:02:16]}  Ng5 {[%clk 0:01:30]} 19. f3 {[%clk 0:02:10]}  d5 {[%clk 0:00:58]} 20. cxd5 {[%clk 0:02:00]}  cxd5 {[%clk 0:00:58]} 21. h4 {[%clk 0:02:00]}  Nxf3+ {[%clk 0:00:50]} 22. Nxf3 {[%clk 0:01:47]}  Ng4+ {[%clk 0:00:48]} 23. Kg1 {[%clk 0:01:46]}  dxe4 {[%clk 0:00:35]} 24. Nh2 {[%clk 0:01:12]}  Ne3 {[%clk 0:00:21]} 25. Qc1 {[%clk 0:01:09]}  Nxg2 {[%clk 0:00:20]} 26. Kxg2 {[%clk 0:01:09]}  Rc8 {[%clk 0:00:20]} 27. Qe3 {[%clk 0:01:06]}  Bc6 {[%clk 0:00:18]} 28. Bxg7 {[%clk 0:01:05]}  Kxg7 {[%clk 0:00:19]} 29. Nd4 {[%clk 0:01:05]}  Bd5 {[%clk 0:00:18]} 30. Rbc1 {[%clk 0:01:04]}  Qd6 {[%clk 0:00:18]} 31. Ng4 {[%clk 0:01:02]}  h5 {[%clk 0:00:17]} 32. Qh6+ {[%clk 0:01:01]}  Kg8 {[%clk 0:00:17]} 33. Nf5 {[%clk 0:01:01]}  e3+ {[%clk 0:00:13]} 34. Kh2 {[%clk 0:00:59]}  gxf5 {[%clk 0:00:11]} 35. Qxd6 {[%clk 0:00:58]}  Rxc1 {[%clk 0:00:11]} 36. Nf6+ {[%clk 0:00:56]}  Kh8 {[%clk 0:00:04]} 37. Rxc1 {[%clk 0:00:56]} 1-0


[Site "https://www.chess.com"]

[Event "Titled Tuesday Blitz June 27 Early 2023"]
[White "Skuhala, Jernej"]
[Black "Harshavardhan G B"]
[WhiteFideId "14605651"]
[BlackFideId "25059009"]
[WhiteElo "2622"]
[BlackElo "2791"]
[Result "0-1"]
[Round "5"]
[TimeControl "180+2"]
[Date "2023.06.27"]
[WhiteClock "0:02:13"]
[BlackClock "0:02:51"]
[Board "47"]

1. e4 {[%clk 0:03:00]}  e5 {[%clk 0:02:59]} 2. Nf3 {[%clk 0:02:59]}  Nc6 {[%clk 0:03:00]} 3. Bb5 {[%clk 0:03:00]}  a6 {[%clk 0:03:00]} 4. Ba4 {[%clk 0:03:00]}  d6 {[%clk 0:03:00]} 5. O-O {[%clk 0:03:00]}  Bg4 {[%clk 0:03:00]} 6. c3 {[%clk 0:03:00]}  Qf6 {[%clk 0:02:59]} 7. d3 {[%clk 0:02:55]}  Ne7 {[%clk 0:02:59]} 8. Nbd2 {[%clk 0:02:54]}  Ng6 {[%clk 0:02:59]} 9. h3 {[%clk 0:02:53]}  h5 {[%clk 0:02:59]} 10. Qc2 {[%clk 0:02:25]}  Nf4 {[%clk 0:02:57]} 11. Re1 {[%clk 0:02:18]}  Bxh3 {[%clk 0:02:51]} 12. gxh3 {[%clk 0:02:13]}  Qg6+ {[%clk 0:02:51]} 0-1


[Site "https://www.chess.com"]

[Event "Titled Tuesday Blitz June 27 Early 2023"]
[White "Bryakin, Mikhail"]
[Black "Vlassov, Nikolai"]
[WhiteFideId "4165314"]
[BlackFideId "4103360"]
[WhiteElo "2772"]
[BlackElo "2600"]
[Result "0-1"]
[Round "5"]
[TimeControl "180+2"]
[Date "2023.06.27"]
[WhiteClock "0:00:04"]
[BlackClock "0:00:10"]
[Board "49"]

1. e4 {[%clk 0:02:55]}  Nc6 {[%clk 0:02:59]} 2. Nf3 {[%clk 0:02:54]}  d5 {[%clk 0:02:59]} 3. exd5 {[%clk 0:02:52]}  Qxd5 {[%clk 0:03:00]} 4. Nc3 {[%clk 0:02:52]}  Qa5 {[%clk 0:03:00]} 5. d4 {[%clk 0:02:46]}  Bg4 {[%clk 0:03:00]} 6. h3 {[%clk 0:02:23]}  Bxf3 {[%clk 0:02:59]} 7. Qxf3 {[%clk 0:02:14]}  O-O-O {[%clk 0:02:59]} 8. Be3 {[%clk 0:01:54]}  e5 {[%clk 0:02:58]} 9. dxe5 {[%clk 0:01:18]}  Ba3 {[%clk 0:02:51]} 10. Bd2 {[%clk 0:00:56]}  Qxe5+ {[%clk 0:02:28]} 11. Qe3 {[%clk 0:00:39]}  Qxe3+ {[%clk 0:02:20]} 12. fxe3 {[%clk 0:00:40]}  Bxb2 {[%clk 0:02:20]} 13. Rb1 {[%clk 0:00:40]}  Ba3 {[%clk 0:02:17]} 14. Bc4 {[%clk 0:00:40]}  Nh6 {[%clk 0:02:05]} 15. g4 {[%clk 0:00:37]}  Rhe8 {[%clk 0:02:02]} 16. Be2 {[%clk 0:00:23]}  Bc5 {[%clk 0:01:35]} 17. Nd1 {[%clk 0:00:23]}  f5 {[%clk 0:01:21]} 18. Rf1 {[%clk 0:00:22]}  g6 {[%clk 0:01:09]} 19. Rb5 {[%clk 0:00:09]}  b6 {[%clk 0:01:01]} 20. Rb3 {[%clk 0:00:09]}  Ne5 {[%clk 0:00:54]} 21. g5 {[%clk 0:00:09]}  Nhf7 {[%clk 0:00:53]} 22. Ba6+ {[%clk 0:00:10]}  Kb8 {[%clk 0:00:52]} 23. Bb5 {[%clk 0:00:10]}  c6 {[%clk 0:00:51]} 24. Be2 {[%clk 0:00:06]}  Nd6 {[%clk 0:00:49]} 25. Nf2 {[%clk 0:00:04]}  Nec4 {[%clk 0:00:44]} 26. Bc1 {[%clk 0:00:02]}  Bxe3 {[%clk 0:00:40]} 27. Nd3 {[%clk 0:00:01]}  Bxc1 {[%clk 0:00:31]} 28. Nxc1 {[%clk 0:00:02]}  Ne3 {[%clk 0:00:30]} 29. Rf3 {[%clk 0:00:02]}  Nxc2+ {[%clk 0:00:30]} 30. Kf1 {[%clk 0:00:03]}  Nd4 {[%clk 0:00:29]} 31. Rbe3 {[%clk 0:00:02]}  Nxf3 {[%clk 0:00:29]} 32. Rxf3 {[%clk 0:00:02]}  Ne4 {[%clk 0:00:27]} 33. Ra3 {[%clk 0:00:02]}  Nxg5 {[%clk 0:00:25]} 34. Nd3 {[%clk 0:00:02]}  Nxh3 {[%clk 0:00:22]} 35. Nb4 {[%clk 0:00:03]}  Nf4 {[%clk 0:00:19]} 36. Nxc6+ {[%clk 0:00:03]}  Kc7 {[%clk 0:00:19]} 37. Bf3 {[%clk 0:00:03]}  a5 {[%clk 0:00:18]} 38. Nxd8 {[%clk 0:00:03]}  Rxd8 {[%clk 0:00:18]} 39. Re3 {[%clk 0:00:03]}  Rd2 {[%clk 0:00:16]} 40. Re7+ {[%clk 0:00:03]}  Kd6 {[%clk 0:00:16]} 41. Rxh7 {[%clk 0:00:04]}  Rxa2 {[%clk 0:00:16]} 42. Rb7 {[%clk 0:00:04]}  Kc5 {[%clk 0:00:16]} 43. Rc7+ {[%clk 0:00:05]}  Kd4 {[%clk 0:00:16]} 44. Rc6 {[%clk 0:00:05]}  Ke3 {[%clk 0:00:15]} 45. Bd1 {[%clk 0:00:04]}  Ra1 {[%clk 0:00:15]} 46. Rd6 {[%clk 0:00:04]}  Nd3 {[%clk 0:00:15]} 47. Kg2 {[%clk 0:00:03]}  Rxd1 {[%clk 0:00:14]} 48. Re6+ {[%clk 0:00:04]}  Kd2 {[%clk 0:00:12]} 49. Rxb6 {[%clk 0:00:05]}  a4 {[%clk 0:00:12]} 50. Ra6 {[%clk 0:00:05]}  Nc5 {[%clk 0:00:11]} 51. Ra5 {[%clk 0:00:05]}  Rc1 {[%clk 0:00:10]} 52. Kg3 {[%clk 0:00:06]}  Rc4 {[%clk 0:00:10]} 53. Kf3 {[%clk 0:00:04]}  Kc3 {[%clk 0:00:10]} 0-1


[Site "https://www.chess.com"]

[Event "Titled Tuesday Blitz June 27 Early 2023"]
[White "Halkias, Stelios"]
[Black "Iskusnyh, Sergei"]
[WhiteFideId "4201809"]
[BlackFideId "4120027"]
[WhiteElo "2768"]
[BlackElo "2592"]
[Result "1-0"]
[Round "5"]
[TimeControl "180+2"]
[Date "2023.06.27"]
[WhiteClock "0:00:55"]
[BlackClock "0:00:06"]
[Board "51"]

1. Nf3 {[%clk 0:02:56]}  Nf6 {[%clk 0:02:48]} 2. c4 {[%clk 0:02:55]}  e6 {[%clk 0:02:47]} 3. g3 {[%clk 0:02:55]}  d5 {[%clk 0:02:46]} 4. d4 {[%clk 0:02:55]}  Be7 {[%clk 0:02:45]} 5. Bg2 {[%clk 0:02:55]}  O-O {[%clk 0:02:45]} 6. O-O {[%clk 0:02:56]}  c6 {[%clk 0:02:45]} 7. Nc3 {[%clk 0:02:55]}  b6 {[%clk 0:02:34]} 8. Qd3 {[%clk 0:02:51]}  Nbd7 {[%clk 0:02:26]} 9. b3 {[%clk 0:02:48]}  Ba6 {[%clk 0:02:20]} 10. e4 {[%clk 0:02:48]}  dxc4 {[%clk 0:02:20]} 11. bxc4 {[%clk 0:02:48]}  e5 {[%clk 0:02:20]} 12. Ne2 {[%clk 0:02:48]}  exd4 {[%clk 0:02:16]} 13. Nexd4 {[%clk 0:02:24]}  Nc5 {[%clk 0:01:28]} 14. Qc2 {[%clk 0:02:22]}  Rc8 {[%clk 0:01:24]} 15. Rd1 {[%clk 0:02:12]}  Qe8 {[%clk 0:01:22]} 16. Nf5 {[%clk 0:02:07]}  Ne6 {[%clk 0:01:15]} 17. Bb2 {[%clk 0:02:04]}  Rd8 {[%clk 0:01:06]} 18. Rxd8 {[%clk 0:01:59]}  Qxd8 {[%clk 0:01:07]} 19. Rd1 {[%clk 0:01:58]}  Qc7 {[%clk 0:01:05]} 20. Be5 {[%clk 0:01:55]}  Qb7 {[%clk 0:01:02]} 21. Nxe7+ {[%clk 0:01:54]}  Qxe7 {[%clk 0:01:01]} 22. Bd6 {[%clk 0:01:55]}  Qe8 {[%clk 0:01:01]} 23. Bxf8 {[%clk 0:01:55]}  Qxf8 {[%clk 0:01:02]} 24. e5 {[%clk 0:01:55]}  Ne8 {[%clk 0:01:00]} 25. Bh3 {[%clk 0:01:49]}  N8c7 {[%clk 0:00:58]} 26. Rd7 {[%clk 0:01:47]}  Bc8 {[%clk 0:00:49]} 27. Bxe6 {[%clk 0:01:40]}  Nxe6 {[%clk 0:00:48]} 28. Rxa7 {[%clk 0:01:39]}  h6 {[%clk 0:00:43]} 29. Ra8 {[%clk 0:01:34]}  Nc7 {[%clk 0:00:42]} 30. Rb8 {[%clk 0:01:32]}  Qe8 {[%clk 0:00:33]} 31. Qe4 {[%clk 0:01:14]}  b5 {[%clk 0:00:31]} 32. cxb5 {[%clk 0:01:06]}  Nxb5 {[%clk 0:00:18]} 33. e6 {[%clk 0:01:00]}  fxe6 {[%clk 0:00:16]} 34. Ne5 {[%clk 0:01:00]}  Nd6 {[%clk 0:00:14]} 35. Qxc6 {[%clk 0:00:58]}  Qxc6 {[%clk 0:00:14]} 36. Nxc6 {[%clk 0:00:58]}  Kf7 {[%clk 0:00:15]} 37. f4 {[%clk 0:00:58]}  Ba6 {[%clk 0:00:14]} 38. a4 {[%clk 0:00:57]}  Kf6 {[%clk 0:00:14]} 39. Ne5 {[%clk 0:00:56]}  Be2 {[%clk 0:00:10]} 40. Kf2 {[%clk 0:00:56]}  Bd1 {[%clk 0:00:08]} 41. a5 {[%clk 0:00:55]}  Ne4+ {[%clk 0:00:08]} 42. Ke1 {[%clk 0:00:55]}  Ba4 {[%clk 0:00:06]} 43. a6 {[%clk 0:00:55]} 1-0


[Site "https://www.chess.com"]

[Event "Titled Tuesday Blitz June 27 Early 2023"]
[White "Fonseca Manrique, Enrique"]
[Black "Priasmoro, Novendra"]
[WhiteFideId "5114330"]
[BlackFideId "7105029"]
[WhiteElo "2567"]
[BlackElo "2754"]
[Result "0-1"]
[Round "5"]
[TimeControl "180+2"]
[Date "2023.06.27"]
[WhiteClock "0:00:03"]
[BlackClock "0:01:12"]
[Board "53"]

1. e4 {[%clk 0:03:00]}  c5 {[%clk 0:02:56]} 2. Nf3 {[%clk 0:03:00]}  Nc6 {[%clk 0:02:57]} 3. Bb5 {[%clk 0:03:00]}  g6 {[%clk 0:02:58]} 4. O-O {[%clk 0:03:00]}  Bg7 {[%clk 0:02:58]} 5. d3 {[%clk 0:02:59]}  Nf6 {[%clk 0:02:58]} 6. Re1 {[%clk 0:02:57]}  O-O {[%clk 0:02:58]} 7. e5 {[%clk 0:02:55]}  Nd5 {[%clk 0:02:58]} 8. Nbd2 {[%clk 0:02:52]}  d6 {[%clk 0:02:53]} 9. Bxc6 {[%clk 0:02:48]}  bxc6 {[%clk 0:02:53]} 10. Nc4 {[%clk 0:02:43]}  Nb6 {[%clk 0:02:45]} 11. Na5 {[%clk 0:02:29]}  Qc7 {[%clk 0:02:44]} 12. h3 {[%clk 0:02:18]}  Rb8 {[%clk 0:02:41]} 13. Nb3 {[%clk 0:01:53]}  c4 {[%clk 0:02:37]} 14. dxc4 {[%clk 0:01:51]}  Nxc4 {[%clk 0:02:38]} 15. Bf4 {[%clk 0:01:47]}  dxe5 {[%clk 0:02:22]} 16. Bg3 {[%clk 0:01:47]}  f6 {[%clk 0:02:20]} 17. Qe2 {[%clk 0:01:37]}  Nd6 {[%clk 0:02:10]} 18. Rab1 {[%clk 0:01:26]}  c5 {[%clk 0:02:09]} 19. Nbd2 {[%clk 0:01:21]}  Qc6 {[%clk 0:02:01]} 20. b3 {[%clk 0:01:08]}  Kh8 {[%clk 0:01:57]} 21. h4 {[%clk 0:01:07]}  Bg4 {[%clk 0:01:53]} 22. Qf1 {[%clk 0:00:59]}  Nf5 {[%clk 0:01:44]} 23. Bh2 {[%clk 0:00:57]}  Rbd8 {[%clk 0:01:41]} 24. Qc4 {[%clk 0:00:40]}  Nd4 {[%clk 0:01:38]} 25. Nxd4 {[%clk 0:00:33]}  Rxd4 {[%clk 0:01:39]} 26. Qc3 {[%clk 0:00:33]}  Rfd8 {[%clk 0:01:31]} 27. Ne4 {[%clk 0:00:33]}  Rxe4 {[%clk 0:01:30]} 28. Rxe4 {[%clk 0:00:30]}  Qxe4 {[%clk 0:01:31]} 29. f3 {[%clk 0:00:30]}  Bxf3 {[%clk 0:01:24]} 30. gxf3 {[%clk 0:00:30]}  Qxh4 {[%clk 0:01:25]} 31. Qxc5 {[%clk 0:00:24]}  Qg5+ {[%clk 0:01:25]} 32. Kf1 {[%clk 0:00:22]}  Qf5 {[%clk 0:01:20]} 33. Qxe7 {[%clk 0:00:13]}  Qxf3+ {[%clk 0:01:15]} 34. Kg1 {[%clk 0:00:13]}  Rc8 {[%clk 0:01:15]} 35. Rf1 {[%clk 0:00:09]}  Qe3+ {[%clk 0:01:14]} 36. Kh1 {[%clk 0:00:09]}  h5 {[%clk 0:01:12]} 37. Rg1 {[%clk 0:00:03]}  Qe4+ {[%clk 0:01:12]} 38. Rg2 {[%clk 0:00:03]}  Rxc2 {[%clk 0:01:13]} 39. Bg1 {[%clk 0:00:03]}  Qxg2# {[%clk 0:01:12]} 0-1


[Site "https://www.chess.com"]

[Event "Titled Tuesday Blitz June 27 Early 2023"]
[White "Gheorghiu, Calin"]
[Black "Morefield, Jason"]
[WhiteFideId "1200305"]
[BlackFideId "30920825"]
[WhiteElo "2493"]
[BlackElo "2746"]
[Result "0-1"]
[Round "5"]
[TimeControl "180+2"]
[Date "2023.06.27"]
[WhiteClock "0:00:22"]
[BlackClock "0:00:11"]
[Board "55"]

1. h3 {[%clk 0:03:00]}  e5 {[%clk 0:02:54]} 2. c4 {[%clk 0:02:55]}  Nf6 {[%clk 0:02:52]} 3. g4 {[%clk 0:02:54]}  d5 {[%clk 0:02:42]} 4. cxd5 {[%clk 0:02:53]}  Qxd5 {[%clk 0:02:41]} 5. Nf3 {[%clk 0:02:53]}  e4 {[%clk 0:02:40]} 6. Nc3 {[%clk 0:02:52]}  Qc6 {[%clk 0:02:27]} 7. e3 {[%clk 0:02:47]}  Nbd7 {[%clk 0:02:22]} 8. Nd4 {[%clk 0:02:45]}  Qb6 {[%clk 0:02:20]} 9. g5 {[%clk 0:02:41]}  c5 {[%clk 0:02:02]} 10. Nf5 {[%clk 0:02:30]}  Ne5 {[%clk 0:01:55]} 11. Nh4 {[%clk 0:02:19]}  Be7 {[%clk 0:01:24]} 12. gxf6 {[%clk 0:02:15]}  Qxf6 {[%clk 0:01:21]} 13. Nd5 {[%clk 0:02:02]}  Qxh4 {[%clk 0:01:17]} 14. Be2 {[%clk 0:01:50]}  Bd8 {[%clk 0:01:06]} 15. Bb5+ {[%clk 0:01:26]}  Kf8 {[%clk 0:01:00]} 16. Qa4 {[%clk 0:01:19]}  Nf3+ {[%clk 0:00:38]} 17. Ke2 {[%clk 0:01:15]}  Qh5 {[%clk 0:00:25]} 18. Nf4 {[%clk 0:01:07]}  Nd4+ {[%clk 0:00:25]} 19. Kf1 {[%clk 0:01:03]}  Qf3 {[%clk 0:00:25]} 20. exd4 {[%clk 0:00:58]}  Qxh1+ {[%clk 0:00:25]} 21. Ke2 {[%clk 0:00:58]}  Qf3+ {[%clk 0:00:25]} 22. Ke1 {[%clk 0:00:59]}  Qxf4 {[%clk 0:00:23]} 23. dxc5 {[%clk 0:00:59]}  Bxh3 {[%clk 0:00:21]} 24. d4 {[%clk 0:00:59]}  Qf3 {[%clk 0:00:18]} 25. c6 {[%clk 0:00:44]}  Bh4 {[%clk 0:00:14]} 26. Qc2 {[%clk 0:00:22]}  e3 {[%clk 0:00:11]} 0-1


[Site "https://www.chess.com"]

[Event "Titled Tuesday Blitz June 27 Early 2023"]
[White "Lorparizangeneh, Shahin"]
[Black "Garrido Outon, Alex"]
[WhiteFideId "12521604"]
[BlackFideId "24516279"]
[WhiteElo "2744"]
[BlackElo "2509"]
[Result "1-0"]
[Round "5"]
[TimeControl "180+2"]
[Date "2023.06.27"]
[WhiteClock "0:01:37"]
[BlackClock "0:00:07"]
[Board "56"]

1. e4 {[%clk 0:02:57]}  c6 {[%clk 0:03:00]} 2. Nc3 {[%clk 0:02:56]}  g6 {[%clk 0:02:59]} 3. Nf3 {[%clk 0:02:56]}  d5 {[%clk 0:02:59]} 4. d4 {[%clk 0:02:56]}  Bg7 {[%clk 0:02:57]} 5. h3 {[%clk 0:02:57]}  dxe4 {[%clk 0:02:57]} 6. Nxe4 {[%clk 0:02:58]}  Nf6 {[%clk 0:02:57]} 7. Nxf6+ {[%clk 0:02:57]}  exf6 {[%clk 0:02:52]} 8. Be3 {[%clk 0:02:58]}  Be6 {[%clk 0:02:50]} 9. Bd3 {[%clk 0:02:57]}  O-O {[%clk 0:02:49]} 10. O-O {[%clk 0:02:55]}  Na6 {[%clk 0:02:43]} 11. a3 {[%clk 0:02:53]}  Nc7 {[%clk 0:02:43]} 12. c4 {[%clk 0:02:53]}  a5 {[%clk 0:02:34]} 13. b3 {[%clk 0:02:50]}  Qd7 {[%clk 0:02:33]} 14. Qc2 {[%clk 0:02:48]}  Rfe8 {[%clk 0:02:30]} 15. Rad1 {[%clk 0:02:46]}  Qd6 {[%clk 0:02:27]} 16. a4 {[%clk 0:02:37]}  Na6 {[%clk 0:02:25]} 17. Qd2 {[%clk 0:02:31]}  Nb4 {[%clk 0:02:25]} 18. Bb1 {[%clk 0:02:30]}  b5 {[%clk 0:02:22]} 19. axb5 {[%clk 0:02:28]}  cxb5 {[%clk 0:02:23]} 20. d5 {[%clk 0:02:28]}  Bc8 {[%clk 0:02:02]} 21. c5 {[%clk 0:02:27]}  Qd8 {[%clk 0:01:59]} 22. c6 {[%clk 0:02:19]}  Qd6 {[%clk 0:01:48]} 23. Bf4 {[%clk 0:02:16]}  Qc5 {[%clk 0:01:44]} 24. Rfe1 {[%clk 0:02:03]}  Rxe1+ {[%clk 0:01:40]} 25. Rxe1 {[%clk 0:02:04]}  Ba6 {[%clk 0:01:37]} 26. d6 {[%clk 0:01:45]}  Nxc6 {[%clk 0:00:58]} 27. d7 {[%clk 0:01:44]}  Rf8 {[%clk 0:00:18]} 28. Re8 {[%clk 0:01:40]}  Nd8 {[%clk 0:00:08]} 29. Bd6 {[%clk 0:01:37]}  Qc6 {[%clk 0:00:08]} 30. Bxf8 {[%clk 0:01:37]}  Bxf8 {[%clk 0:00:07]} 31. Rxd8 {[%clk 0:01:37]} 1-0


[Site "https://www.chess.com"]